Cogmind - Beta 11 X6 @@@ ROGUE MODE // 2021.08.08 @ 13:08:36 Player: cptwinky Result: Escaped! Performance ------------- Evolutions (9) 4500 Regions Visited (28) 5600 Robots Destroyed (349) 1745 Value Destroyed (18240) 18240 Prototype IDs (76) 1520 Alien Tech Used (2) 400 Bonus (18074) 18074 TOTAL SCORE: 50079 Bonus ------- Triggered High Security 500 High Alert Combat Kills 5144 Follower Combat Kills 4400 Network Hubs Disabled 600 Met Data Miner 300 Met Warlord at Base 500 MAIN.C Attacked Warlord 500 Built Enhanced Grunts 300 Met R17 at Cetus 500 Hacked Protovariant 500 Met R17 at Research 2000 Met Warlord at Research 2000 Win 3000 Friendly Fire -2170 Cogmind --------- Core Integrity 1274/1600 Matter 47/300 Energy 1/100 System Corruption 1% Temperature Cool (8) Movement Treading (135) Location To Epsilon Eridani Parts ------- > --- POWER (2) -------- (None) > --- PROPULSION (8) --- Experimental Biometal Heavy Treads Experimental Biometal Heavy Treads > --- UTILITY (11) ----- Experimental Coolant Injector Huge Storage Unit Advanced Visual Processing Unit Experimental Signal Interpreter Experimental Targeting Computer Field Recycling Unit > --- WEAPON (5) ------- Heavy Quantum Rifle Cooled Nova Cannon Point Singularity Launcher Lance > --- INVENTORY (25) --- Advanced Matter Compressor (0) Subatomic Replicator Heavy Machine Gun KE Penetrator Hypervelocity Railgun Heavy Gauss Cannon Hypercooled Linear Accelerator Graviton Cannon Graviton Cannon Mini Smartbomb Launcher Fusion Bomb Launcher Improved Datajack Lance Peak State ------------ > --- POWER ------------ Quantum Reactor Quantum Reactor > --- PROPULSION ------- Experimental Biometal Heavy Treads Experimental Biometal Heavy Treads Experimental Biometal Heavy Treads Experimental Biometal Heavy Treads > --- UTILITY ---------- Experimental Cooling System Huge Storage Unit Advanced Visual Processing Unit Experimental Sensor Array Experimental Signal Interpreter Advanced Terrain Scanner Experimental Targeting Computer Centrium Medium Armor Plating Advanced Force Field Matter Drive > --- WEAPON ----------- Heavy Gauss Cannon Hypercooled Linear Accelerator Graviton Cannon Graviton Cannon Lance > --- INVENTORY -------- Quantum Reactor Experimental Biometal Heavy Treads Experimental Coolant Injector Advanced Matter Compressor Centrium Medium Armor Plating Improved System Restoration Module Splice Drone Bay Subatomic Replicator Vortex Rifle Vortex Rifle Vortex Rail Vortex Rail Heavy Quantum Rifle Cooled Nova Cannon Hypervelocity Railgun Hypercooled Linear Accelerator Mini Smartbomb Launcher Fusion Bomb Launcher Point Singularity Launcher Improved Datajack Lance [Rating: 245] Favorites ----------- Power Quantum Reactor Engine Heavy Ion Engine Reactor Quantum Reactor Propulsion Heavy Treads Treads Heavy Treads Leg Enhanced Flexi-carbon Leg Wheel Armored Huge Wheel Utility Advanced Visual Processing Unit Device Experimental Cooling System Storage High-capacity Storage Unit Processor Advanced Visual Processing Unit Hackware System Shield Protection Centrium Medium Armor Plating Artifact Matter Drive Weapon Heavy Battle Rifle Energy Gun Beamcaster Energy Cannon Cooled Nova Cannon Ballistic Gun Heavy Battle Rifle Ballistic Cannon Hypercooled Linear Accelerator Launcher Fusion Bomb Launcher Impact Weapon Great Maul Slashing Weapon Great Axe Piercing Weapon Lance Special Melee Weapon Improved Datajack Build | -11 -10 -10 -9 -9 -8 -7 -7 -7 -7 -7 -7 -6 -6 -6 -6 -6 -6 -5 -5 -5 -5 -4 -4 -3 -3 -2 -2 -1 ------- Run | Scr Mat Min Mat Min Mat Fac Was Fac Low Low Dat Pro Fac Ext Cet Arc Hub Fac Upp Upp War Pro Fac Res Qua Res Tes Acc Slots Evolved 18 | . . . 2 . 2 2 . . . . . . 2 . . . . 2 . . . . 2 2 . 2 . 2 Power 1 | . . . . . . . . . . . . . . . . . . . . . . . 1 . . . . . Propulsion 5 | . . . . . 1 . . . . . . . 1 . . . . . . . . . 1 . . . . 2 Utility 9 | . . . . . 1 1 . . . . . . 1 . . . . 2 . . . . . 2 . 2 . . Weapon 3 | . . . 2 . . 1 . . . . . . . . . . . . . . . . . . . . . . Parts Attached 355 | 6 9 3 21 5 27 19 10 7 9 . . 14 8 4 7 1 19 8 9 5 12 7 16 8 41 10 34 36 Power 22 | 1 1 1 2 . 2 2 1 . 1 . . 1 1 . . . 1 . . . . . 1 . 3 . 3 1 Engine 10 | 1 1 1 2 . 2 2 . . 1 . . . . . . . . . . . . . . . . . . . Core . | . . . . . . . . . . . . . . . . . . . . . . . . . . . . . Reactor 12 | . . . . . . . 1 . . . . 1 1 . . . 1 . . . . . 1 . 3 . 3 1 Propulsion 49 | 2 3 . 4 . 5 1 3 1 2 . . 3 1 2 2 . 3 1 1 . 1 . 2 1 5 1 3 2 Treads 47 | 2 3 . 4 . 5 . 3 1 2 . . 2 1 2 2 . 3 1 1 . 1 . 2 1 5 1 3 2 Leg 1 | . . . . . . . . . . . . 1 . . . . . . . . . . . . . . . . Wheel 1 | . . . . . . 1 . . . . . . . . . . . . . . . . . . . . . . Hover . | . . . . . . . . . . . . . . . . . . . . . . . . . . . . . Flight . | . . . . . . . . . . . . . . . . . . . . . . . . . . . . . Utility 151 | 1 3 1 3 2 8 9 1 4 . . . 4 2 2 3 1 1 3 6 3 8 7 13 7 20 6 20 13 Device 72 | . . . . 1 2 1 . . . . . 2 2 . . . . 1 6 2 4 6 7 3 10 3 14 8 Storage 8 | 1 1 . . . . 1 . . . . . . . . . . . . . . 1 . 1 . 1 . 2 . Processor 13 | . . . . . 1 3 . 1 . . . . . . . . . . . . 2 . 1 2 1 1 1 . Hackware 5 | . . . . . . . . 2 . . . . . 1 . . . 1 . . . . . 1 . . . . Protection 51 | . 2 1 3 1 5 4 1 1 . . . 2 . 1 3 1 1 1 . 1 1 1 4 1 8 2 3 3 Artifact 2 | . . . . . . . . . . . . . . . . . . . . . . . . . . . . 2 Weapon 133 | 2 2 1 12 3 12 7 5 2 6 . . 6 4 . 2 . 14 4 2 2 3 . . . 13 3 8 20 Energy Gun 31 | 1 . 1 2 . . 1 1 . . . . 5 2 . . . 4 2 1 . 1 . . . 3 . 1 6 Energy Cannon 8 | . . . . . . . . . . . . . . . . . 1 . . . . . . . 3 . . 4 Ballistic Gun 50 | 1 2 . 9 2 9 3 4 1 3 . . . 2 . 1 . 7 1 . 1 1 . . . 2 . . 1 Ballistic Cannon 15 | . . . . . . . . . . . . . . . . . . . . . . . . . 4 2 4 5 Launcher 12 | . . . 1 1 2 1 . . 1 . . 1 . . . . . . . . . . . . . 1 2 2 Special Weapon . | . . . . . . . . . . . . . . . . . . . . . . . . . . . . . Impact Weapon 6 | . . . . . . . . . . . . . . . 1 . 2 1 1 1 . . . . . . . . Slashing Weapon 4 | . . . . . . 1 . 1 2 . . . . . . . . . . . . . . . . . . . Piercing Weapon 1 | . . . . . . . . . . . . . . . . . . . . . . . . . 1 . . . Special Melee Weapon 6 | . . . . . 1 1 . . . . . . . . . . . . . . 1 . . . . . 1 2 Unidentified Prototypes 35 | . . . 2 1 1 1 . . . . . 1 1 . 2 . 1 . 1 . 7 . 2 2 6 . 6 1 Corrupted Parts 5 | . . . . . . . . . . . . . . . . . 5 . . . . . . . . . . . System Corruption 31 | . . . . . . . . . . . . . . . . . 31 . . . . . . . . . . . Parts Lost 49 | . 2 1 . . . . . . . . . 8 3 . . . 4 1 1 . . . 2 1 2 . 3 21 Power 6 | . 1 . . . . . . . . . . 1 . . . . 1 . . . . . . . . . . 3 Propulsion 4 | . . . . . . . . . . . . 1 . . . . . . . . . . . . . . . 3 Utility 24 | . . 1 . . . . . . . . . 1 1 . . . 1 . 1 . . . 2 1 2 . 3 11 Weapon 15 | . 1 . . . . . . . . . . 5 2 . . . 2 1 . . . . . . . . . 4 Highest Loss Streak 8 | . 1 1 . . . . . . . . . 7 3 . . . 4 1 1 . . . 1 1 1 . 2 8 Average Slot Usage (%) 86 | . 97 99 99 100 99 93 92 92 91 92 92 86 80 86 87 86 84 85 87 87 76 66 59 63 78 86 86 77 Engine 2 | . 14 14 11 11 9 7 1 . . 7 7 4 . . . . . . . . . . . . . . . . Reactor 4 | . . . . . . . 5 7 6 . . 2 6 6 6 6 5 5 5 5 5 5 5 4 7 8 8 6 Treads 16 | . 27 28 21 22 27 10 13 15 14 15 15 15 13 13 14 13 12 11 12 16 16 16 15 13 13 12 12 14 Device 6 | . . . . . . . . . . . . 2 8 6 6 6 6 7 11 11 13 13 12 15 11 18 17 13 Storage 6 | . 14 14 11 11 9 7 7 7 7 7 7 7 6 6 6 6 6 5 5 5 5 5 5 4 4 4 4 3 Processor 8 | . . . . . 9 15 15 11 15 15 15 11 6 6 6 6 6 5 5 5 7 11 10 10 11 11 12 11 Hackware 2 | . . . . . . . . 6 . . . . . 5 6 6 6 6 5 5 2 . . 4 4 4 3 . Protection 7 | . 11 13 11 11 8 6 7 3 7 7 7 6 6 6 6 6 6 11 11 10 8 7 7 4 7 6 6 5 Energy Gun 5 | . 14 14 8 . . . 4 . . . . 12 18 20 20 20 14 3 4 5 4 5 5 4 1 . . 3 Ballistic Gun 18 | . 14 14 35 42 35 36 32 37 37 38 38 20 13 13 12 13 17 24 22 21 10 . . . 3 . . . Ballistic Cannon 2 | . . . . . . . . . . . . . . . . . . . . . . . . . 9 15 14 8 Naked Turns . | . . . . . . . . . . . . . . . . . . . . . . . . . . . . . Heaviest Build 225 | 11 31 31 45 46 49 73 83 83 83 81 81 90 90 90 87 87 96 109 108 107 144 140 166 169 222 225 225 222 Greatest Support 340 | 40 40 40 40 40 60 60 90 90 90 90 90 98 140 140 150 150 150 150 163 163 168 168 210 220 230 230 255 340 Greatest Overweight (x) 28 | . . . 1 1 . 2 2 . 1 . . . . . . 28 . . . . . . . . 1 . . . Average Overweight (x) . | . . . . . . 1 . . . . . . . . . 14 . . . . . . . . . . . . Largest Inventory Capacity 25 | 8 15 15 15 15 15 20 20 20 20 20 20 20 20 20 20 20 20 20 20 20 25 25 25 25 25 25 25 25 Average Capacity 20 | 6 10 15 15 15 15 17 20 20 20 20 20 20 20 20 20 20 20 20 20 20 22 25 25 25 25 25 25 25 Most Carried 25 | 4 11 15 15 15 15 20 20 20 20 20 20 20 17 20 20 20 20 20 20 20 25 25 25 25 25 25 25 24 Average Carried 19 | 2 7 14 14 14 14 15 19 19 19 20 20 17 15 19 19 20 19 18 19 20 20 24 24 24 24 24 24 20 Final Capacity 25 | 8 15 15 15 15 15 20 20 20 20 20 20 20 20 20 20 20 20 20 20 20 25 25 25 25 25 25 25 25 Final Carried 25 | 4 11 15 15 15 15 20 20 20 20 20 20 14 14 20 20 20 16 20 20 20 25 25 25 25 25 25 24 13 Class Distribution -------------------- 26% | Scavenger-Tank 16% | Tank 13% | Derelict-Gunner 8% | Commander-Tank 7% | Mutant 6% | Gunner 5% | Scavenger-Assassin 4% | Assassin 3% | Hacker-Skirmisher Dominant Class ---------------- Mutant | -10/Materials Mutant | -10/Mines Scavenger-Tank | -9/Materials Tank | -9/Mines Tank | -8/Materials Gunner | -7/Factory Gunner | -7/Waste Derelict-Gunner | -7/Factory Derelict-Gunner | -7/Lower Caves Derelict-Gunner | -7/Lower Caves Derelict-Gunner | -7/Data Miner Derelict-Tank | -6/Proximity Caves Tank | -6/Factory Commander-Tank | -6/Extension Commander-Tank | -6/Cetus Commander-Tank | -6/Archives Commander-Tank | -6/Hub_04(d) Scavenger-Tank | -5/Factory Scavenger-Tank | -5/Upper Caves Scavenger-Tank | -5/Upper Caves Scavenger-Tank | -5/Warlord Scavenger-Tank | -4/Proximity Caves Tank | -4/Factory Hacker-Tank | -3/Research Scavenger-Tank | -3/Quarantine Scavenger-Assassin | -2/Research Scavenger-Assassin | -2/Testing Assassin | -1/Access Resources | -11 -10 -10 -9 -9 -8 -7 -7 -7 -7 -7 -7 -6 -6 -6 -6 -6 -6 -5 -5 -5 -5 -4 -4 -3 -3 -2 -2 -1 ----------- Run | Scr Mat Min Mat Min Mat Fac Was Fac Low Low Dat Pro Fac Ext Cet Arc Hub Fac Upp Upp War Pro Fac Res Qua Res Tes Acc Matter Collected 13027 | 213 243 162 390 261 1048 967 324 140 270 30 . 437 77 436 178 18 50 621 336 204 199 70 163 63 1492 805 2007 1823 Remotely . | . . . . . . . . . . . . . . . . . . . . . . . . . . . . . Salvage Created 15747 | . 414 51 753 87 1148 949 90 227 285 56 . 748 . 708 89 . 241 204 339 252 . 754 2122 282 792 141 2846 2169 Parts 674 | . 32 8 54 . 76 57 4 18 12 1 . 14 . 40 . . 6 4 20 18 . 22 67 8 41 8 75 89 Haulers Intercepted 13 | . 1 . 2 . 4 . . 2 . . . . . . . . 1 . . . . 1 2 . . . . . Recyclers Shooed 8 | . . . 2 . . 2 . . . . . . . 1 . . . . . . . . 2 1 . . . . Parts Field Recycled 3 | . . . . . . . . . . . . . . . . . . . . . . . . . . . . 3 Retrieved Matter 5 | . . . . . . . . . . . . . . . . . . . . . . . . . . . . 5 Parts Self-Destructed 171 | . . . . . . . . . 26 1 . 29 . . . . . . 15 20 62 18 . . . . . . Prevented 16 | . . . . . . . . . . . . . . . . . . . 1 . 12 3 . . . . . . Kills | -11 -10 -10 -9 -9 -8 -7 -7 -7 -7 -7 -7 -6 -6 -6 -6 -6 -6 -5 -5 -5 -5 -4 -4 -3 -3 -2 -2 -1 ------- Run | Scr Mat Min Mat Min Mat Fac Was Fac Low Low Dat Pro Fac Ext Cet Arc Hub Fac Upp Upp War Pro Fac Res Qua Res Tes Acc Combat Hostiles Destroyed 289 | . 12 3 20 9 19 17 . 2 5 1 . 16 . 11 1 . . 3 7 8 . 9 27 3 17 3 49 47 Melee 1 | . . . . . . . . . . . . . . . . . . . . . . . . . . . . 1 Guns 128 | . 12 3 14 6 15 14 . 2 5 1 . 10 . 11 . . . 3 7 8 . . . . 6 . . 11 Cannons 62 | . . . . . . . . . . . . . . . . . . . . . . . . . 6 1 33 22 AOE 91 | . . . 6 3 4 3 . . . . . 6 . . . . . . . . . 9 25 3 3 2 16 11 Classes Destroyed 25 | . 5 . 3 1 2 2 1 . 1 . . 1 . 2 . . 1 . 1 . . . . . 1 1 2 1 Worker 9 | . . . . . . . . . . . . . . . . . 1 . . . . . 1 1 . . 3 3 Builder 10 | . . . . . 2 . . . . . . . . . . . . . . . . . . . . . 3 5 Tunneler 1 | . . . . . . 1 . . . . . . . . . . . . . . . . . . . . . . Hauler 13 | . 1 . 2 . 4 . . 2 . . . . . . . . 1 . . . . 1 2 . . . . . Recycler 19 | . . . 1 . 2 7 . . . . . . . . . . . . . . . . . 1 . . 6 2 Carrier 1 | . . . . . . . . . . . . . . . . . . . . . . . . . . . . 1 Mechanic 3 | . . . . . . . . . . . . . . . . . . . . . . . . . . . 2 1 Operator 7 | . 1 . . . 1 2 . . . . . . . 1 . . . . . . . . . . 1 . 1 . Watcher 9 | . 1 . . . 2 . . 1 . . . . . . . . 1 . . . . . 1 . 2 . 1 . Swarmer 50 | . 6 3 8 . 3 10 . . . . . 1 . . . . . . 4 7 . 1 . 3 . . 4 . Saboteur 3 | . . . . . . . . . . . . . . . . . . . . . . . . . . . 1 2 Grunt 102 | . 6 . 6 . 9 3 . . 1 . . 7 . 5 . . . 1 . . . 5 14 . . . 28 17 Brawler 15 | . . . . . 2 1 . . 2 . . 4 . . 1 . . . . . . . . . . . 3 2 Duelist 12 | . . . 1 . 1 . . 1 . . . 2 . . 1 . . . . . . . . . . . 1 5 Protector 4 | . . . . . . . . . . . . 1 . . . . . . . . . . . . . . 1 2 Sentry 26 | . . . 5 . 4 1 . 1 1 1 . 1 . 3 . . . 2 . . . 1 2 . . . 1 3 Demolisher 1 | . . . . . . . . . . . . . . . . . . . . . . . . . . 1 . . Specialist 3 | . . . . . . . . . . . . . . . . . . . . . . . . . 3 . . . Hunter 11 | . . . . . . . . . . . . . . . . . . . 2 . . 2 2 . . 1 . 4 Programmer 30 | . . . . . . 2 . . . . . . . . . . . . 1 . . . 7 . 2 . 10 8 Heavy 4 | . . . . . . . . . . . . . . 1 . . . . . . . . 2 . . . . 1 Behemoth 5 | . . . . . . . . . . . . . . 2 . . . . . 1 . . . . . . . 2 Quarantine Guard 12 | . . . . . . . . . . . . . . . . . . . . . . . . . 12 . . . Enhanced Grunt 1 | . . . . . . . . . . . . . . . . . 1 . . . . . . . . . . . Striker 2 | . . . . . . . . . . . . . . . . . . . . . . . . . . 1 . 1 Decomposer 1 | . . . . . . . . . . . . . . . . . . . 1 . . . . . . . . . Assembled 9 | . . . . 9 . . . . . . . . . . . . . . . . . . . . . . . . Martyr 2 | . . . . . . . 2 . . . . . . . . . . . . . . . . . . . . . Mutant 2 | . . . . . . . . . 1 . . . . . . . . . 1 . . . . . . . . . Best Kill Streak 18 | . 6 2 8 4 9 6 . 2 4 1 . 8 . 3 1 . 2 2 4 5 . 6 10 4 3 3 18 17 Combat Bots Only 15 | . 6 2 8 4 7 4 . 1 4 1 . 8 . 2 1 . . 2 4 5 . 5 10 3 3 3 14 15 Max Kills in Single Turn 6 | . 2 1 4 1 3 2 1 1 2 1 . 3 . 1 1 . 2 1 3 3 . 3 4 2 1 1 6 4 Gunslinging 2 | . 1 . 1 . . 1 . . 1 . . . . . . . . . 1 2 . . . . . . . . Exploded 5 | . . . 4 1 2 2 . . . . . 3 . . . . . . . . . 3 4 2 1 1 5 3 Melee 1 | . . . . . . . . . . . . . . . . . . . . . . . . . . . . 1 Uniques/NPCs Destroyed . | . . . . . . . . . . . . . . . . . . . . . . . . . . . . . Combat | -11 -10 -10 -9 -9 -8 -7 -7 -7 -7 -7 -7 -6 -6 -6 -6 -6 -6 -5 -5 -5 -5 -4 -4 -3 -3 -2 -2 -1 -------- Run | Scr Mat Min Mat Min Mat Fac Was Fac Low Low Dat Pro Fac Ext Cet Arc Hub Fac Upp Upp War Pro Fac Res Qua Res Tes Acc Damage Taken 22310 | . 577 37 532 189 584 350 31 105 267 29 . 1611 286 680 136 70 986 291 655 507 . 369 1718 236 2514 348 2281 6921 Core 1117 | . 88 . 8 13 64 . . . 23 . . 60 . 24 . . 19 46 13 25 . 40 124 21 167 23 33 326 Absorbed by Shields 4239 | . . . . . . . . . . . . . . 84 11 . . 84 199 184 . 290 385 . 122 107 1378 1395 Reduced by Siege Mode 1291 | . . . . . . . . . . . . . . 33 7 . . 5 . . . . 174 . 180 . 128 764 Core Remaining (%) 87 | 100 . 64 . 94 88 . . . . . . 88 . . . . 94 . . . . 87 89 . 85 . 96 79 Volleys Fired 679 | . 51 5 33 15 49 31 8 4 12 2 . 40 2 30 10 1 7 11 17 15 1 11 42 3 68 8 91 112 Largest 5 | . 2 2 4 4 4 5 5 5 5 5 . 5 5 5 5 5 5 5 5 5 1 1 1 1 5 4 4 4 Hottest 300 | . 70 70 118 92 106 175 175 157 157 157 . 258 243 285 285 285 238 255 208 208 300 300 300 300 300 52 160 235 Shots Fired 1984 | . 101 10 123 47 174 140 40 20 60 10 . 137 10 133 50 5 11 55 72 57 1 11 42 3 179 18 179 296 Gun 1499 | . 101 10 121 43 168 138 40 20 60 10 . 132 10 133 50 5 5 55 72 57 1 11 42 3 79 . . 133 Cannon 446 | . . . . . . . . . . . . . . . . . 6 . . . . . . . 100 14 170 156 Launcher 39 | . . . 2 4 6 2 . . . . . 5 . . . . . . . . . . . . . 4 9 7 Special . | . . . . . . . . . . . . . . . . . . . . . . . . . . . . . Kinetic 1424 | . 51 5 97 43 168 134 32 20 60 10 . 94 6 44 20 2 3 41 60 51 . . . . 151 14 170 148 Thermal 437 | . 50 5 24 . . 4 8 . . . . 38 4 89 30 3 8 14 12 6 1 11 42 3 28 . . 57 Explosive 39 | . . . 2 4 6 2 . . . . . 5 . . . . . . . . . . . . . 4 9 7 Electromagnetic . | . . . . . . . . . . . . . . . . . . . . . . . . . . . . . Entropic 84 | . . . . . . . . . . . . . . . . . . . . . . . . . . . . 84 Robot Hit Streak 58 | . 15 4 14 6 22 10 7 6 9 12 . 24 15 15 17 2 . 11 14 11 . 10 50 5 45 7 30 58 Robot Miss Streak 8 | . 4 3 2 4 5 8 4 1 4 . . 5 . 3 3 1 . 2 4 3 . 3 4 6 3 1 2 3 Penetration Max 2 | . . . . . . . . . . . . . . 1 1 . . 1 . 1 . . . . . . . 2 Secondary Targets 30 | . 3 . 3 1 3 5 . 1 3 . . 4 . . . . . . 3 2 . . . . . . . 2 Max Gunslinging Chain 2 | . 1 . 1 1 1 1 . 1 2 . . 1 . . . . . . 1 2 . . . . . . . 1 Shots Hit Robots 1362 | . 61 5 81 21 105 94 26 10 38 7 . 94 10 87 39 3 . 40 46 32 4 10 40 3 135 13 135 223 Core Hits 886 | . 25 3 36 21 57 76 21 8 10 3 . 55 2 38 14 1 10 11 16 12 . 35 98 14 86 9 113 112 Critical Kills 15 | . . . . . . 1 1 . . . . 1 . . . . . 1 1 1 . . . . 3 . . 6 Critical Parts Destroyed 33 | . . . . . . 1 . . 1 . . 1 . 1 . . . 3 4 2 . . . . 6 . . 14 Critical Strikes 105 | . 4 . 1 . . 2 1 . 1 . . 5 . 4 4 . . 4 7 6 . . . . 18 . 16 32 Burn 18 | . 4 . 1 . . . . . . . . 3 . 3 4 . . . 2 1 . . . . . . . . Meltdown 1 | . . . . . . . . . . . . . . . . . . . . . . . . . . . . 1 Destroy 45 | . . . . . . 2 1 . 1 . . 2 . 1 . . . 4 5 5 . . . . 9 . . 15 Blast 36 | . . . . . . . . . . . . . . . . . . . . . . . . . 9 . 16 11 Detonate 5 | . . . . . . . . . . . . . . . . . . . . . . . . . . . . 5 Melee Attacks 90 | . . . . . . 1 . 1 13 . . . . . 11 . 4 1 1 19 4 . . . 2 . 20 13 Impact 36 | . . . . . . . . . . . . . . . 11 . 4 1 1 19 . . . . . . . . Slashing 15 | . . . . . . 1 . 1 13 . . . . . . . . . . . . . . . . . . . Piercing 34 | . . . . . . . . . . . . . . . . . . . . . . . . . 2 . 19 13 Sneak Attacks 8 | . . . . . . . . . . . . . . . . . . . . . 4 . . . . . 4 . Combat Hostiles 1 | . . . . . . . . . . . . . . . . . . . . . . . . . . . 1 . Follow-up Attacks . | . . . . . . . . . . . . . . . . . . . . . . . . . . . . . Damage Inflicted 59611 | . 666 58 1466 546 2407 2013 563 224 762 143 . 2835 227 2165 1039 87 526 1213 1046 818 . 1821 5695 453 6169 1125 11352 14192 Guns 21210 | . 649 52 1051 314 1569 1596 563 215 762 143 . 1782 227 2128 1039 87 . 1213 1046 818 . 76 269 29 1428 . . 4154 Cannons 14808 | . . . . . . . . . . . . . . . . . . . . . . . . . 2786 375 6330 5317 Explosions 22779 | . . . 405 225 819 417 . . . . . 1053 . . . . 521 . . . . 1745 5346 382 1925 750 4633 4558 Melee 426 | . . . . . . . . . . . . . . . . . . . . . . . . . . . 311 115 Ramming 388 | . 17 6 10 7 19 . . 9 . . . . . 37 . . 5 . . . . . 80 42 30 . 78 48 Kinetic 26689 | . 245 25 642 314 1569 1559 525 215 762 143 . 1352 134 659 509 45 . 971 826 729 . . . . 3970 375 6330 4790 Thermal 16347 | . 404 27 409 . . 37 38 . . . . 430 93 1469 530 42 . 242 220 89 . 1821 5615 411 2169 . . 2301 Explosive 12119 | . . . 405 225 819 417 . . . . . 1053 . . . . . . . . . . . . . 750 4633 3817 Electromagnetic 521 | . . . . . . . . . . . . . . . . . 521 . . . . . . . . . . . Impact . | . . . . . . . . . . . . . . . . . . . . . . . . . . . . . Slashing . | . . . . . . . . . . . . . . . . . . . . . . . . . . . . . Piercing 426 | . . . . . . . . . . . . . . . . . . . . . . . . . . . 311 115 Entropic 3121 | . . . . . . . . . . . . . . . . . . . . . . . . . . . . 3121 Highest Corruption 42 | . . . 1 1 . 1 . . . . . . . . . . 42 2 3 3 3 . 5 5 5 . 5 3 Average Corruption 2 | . . . 1 1 . 1 . . . . . . . . . . 14 1 2 3 3 . 2 2 3 . 2 2 Corruption Purged 18 | . . . . . . 1 . . . . . . . . . . . . . . . . 5 5 . . 4 3 Effects 121 | . . . 3 7 . 1 . . . . . . . . . . 1 3 14 19 1 . 5 2 48 . 10 7 Message Errors 44 | . . . 2 4 . 1 . . . . . . . . . . . 2 5 7 1 . 1 2 16 . 1 2 Matter Fused 19 | . . . . . . . . . . . . . . . . . . . 2 2 . . . . 11 . 3 1 Heat Flow Errors 13 | . . . . . . . . . . . . . . . . . . . 1 3 . . 1 . 6 . 2 . Energy Discharges 17 | . . . 1 1 . . . . . . . . . . . . . . 3 3 . . . . 5 . 2 2 Parts Rejected 2 | . . . . . . . . . . . . . . . . . 1 . . . . . 1 . . . . . Data Loss (minor) 21 | . . . . 2 . . . . . . . . . . . . . 1 3 4 . . 2 . 7 . 1 1 Misfires 1 | . . . . . . . . . . . . . . . . . . . . . . . . . 1 . . . Weapon Failures 4 | . . . . . . . . . . . . . . . . . . . . . . . . . 2 . 1 1 Overload Shots 1 | . . . . . . . . . . . . . . . . . . . . . . . . . . . . 1 Overflow Damage 1507 | . . . . . 25 58 . . . . . 11 . . . . 15 . . . . . 117 4 35 . 611 631 Projectiles 489 | . . . . . . . . . . . . . . . . . . . . . . . . . 35 . 314 140 Explosions 861 | . . . . . 25 58 . . . . . 11 . . . . 15 . . . . . 93 . . . 168 491 Melee 157 | . . . . . . . . . . . . . . . . . . . . . . . 24 4 . . 129 . Knockbacks 82 | . . 1 . . . . . . . . . . . . . . . . . . . . 2 1 3 1 42 32 Impact 6 | . . 1 . . . . . . . . . . . . . . . . . . . . 2 1 . . 1 1 Kinetic 67 | . . . . . . . . . . . . . . . . . . . . . . . . . 3 1 36 27 Secondary 9 | . . . . . . . . . . . . . . . . . . . . . . . . . . . 5 4 Self-Inflicted Damage 859 | . . . 56 . 70 . . . . . . . . . . . 92 . . . . 212 46 27 190 . 166 . Shots 32 | . . . 2 . 2 . . . . . . . . . . . 1 . . . . 10 2 2 9 . 4 . Rammed 28 | . 1 1 4 2 1 . . 1 . . . . . 4 . . . . . . . . 3 4 2 . 4 1 Targets Rammed 33 | . 2 1 4 2 2 . . 1 . . . . . 4 . . 1 . . . . . 4 4 2 . 4 2 Kicked . | . . . . . . . . . . . . . . . . . . . . . . . . . . . . . Crushed 5 | . 1 . . . 1 . . . . . . . . . . . 1 . . . . . 1 . . . . 1 Highest Temperature 384 | . 288 104 275 256 221 322 280 63 286 180 . 374 94 292 265 108 51 127 251 319 102 196 342 24 384 . 154 284 Average Temperature 87 | . 87 52 90 92 63 82 128 35 117 91 . 124 52 95 108 55 34 59 104 87 62 111 41 12 102 . 63 85 Received Heat Transfer 2523 | . 150 . 96 . 252 54 . 36 18 . . 594 . 166 18 9 84 33 . 39 . 41 161 9 . . 378 385 Effects 9 | . . . . 4 . . . . . . . 3 . . 1 . . . . . . . . . 1 . . . Shutdowns 1 | . . . . . . . . . . . . . . . . . . . . . . . . . 1 . . . Energy Bleed 1 | . . . . . . . . . . . . 1 . . . . . . . . . . . . . . . . Interference 7 | . . . . 4 . . . . . . . 2 . . 1 . . . . . . . . . . . . . Siege Activations 48 | . . . . . . . . . . . . 1 . 4 1 . . 3 . 1 . . 4 . 8 . 13 13 Total Turns 1034 | . . . . . . . . . . . . 4 . 92 15 . . 93 . 37 . . 109 . 116 . 297 271 Longest Duration 66 | . . . . . . . . . . . . 4 . 60 15 . . 41 . 37 . . 39 . 27 . 66 58 Robots Corrupted 1 | . . . . . . . . . . . . . . . . . 1 . . . . . . . . . . . Combat Hostiles . | . . . . . . . . . . . . . . . . . . . . . . . . . . . . . Parts Fried 5 | . . . 1 . . . . . . . . . . 1 . . 3 . . . . . . . . . . . Impact Corruptions 6 | . . . . . . . . . . . . . . . . . . . . . . . 1 1 . . 3 1 Robots Melted 11 | . . . . . . . . . . . . . . . 1 . . . . . . . 4 1 3 . . 2 Combat Hostiles 7 | . . . . . . . . . . . . . . . 1 . . . . . . . 2 . 2 . . 2 Parts Melted 59 | . 5 . 1 . . . . . 1 . . 5 . 3 3 . . . 1 . . 6 23 6 2 . . 3 Heat Transferred 25511 | . 1480 74 814 . . 74 74 . . . . 685 148 2701 1239 74 . 370 518 222 . 2561 8041 627 4147 . . 1662 Parts Sabotaged . | . . . . . . . . . . . . . . . . . . . . . . . . . . . . . Parts Stolen 1 | . . . . . . . . . 1 . . . . . . . . . . . . . . . . . . . Parts Stripped . | . . . . . . . . . . . . . . . . . . . . . . . . . . . . . Power Chain Reactions . | . . . . . . . . . . . . . . . . . . . . . . . . . . . . . Missiles Intercepted . | . . . . . . . . . . . . . . . . . . . . . . . . . . . . . Alert | -11 -10 -10 -9 -9 -8 -7 -7 -7 -7 -7 -7 -6 -6 -6 -6 -6 -6 -5 -5 -5 -5 -4 -4 -3 -3 -2 -2 -1 ------- Run | Scr Mat Min Mat Min Mat Fac Was Fac Low Low Dat Pro Fac Ext Cet Arc Hub Fac Upp Upp War Pro Fac Res Qua Res Tes Acc Peak Influence 2341 | . 187 90 219 90 356 577 192 685 . . . . 64 565 733 499 1406 1168 . . . . 463 285 470 200 1644 2341 Initial 962 | . . . . 75 . 116 166 . . . . . 59 30 210 293 104 664 . . . . . 157 . 90 107 962 Average 370 | . 90 14 135 31 207 294 82 484 . . . . 58 168 468 409 586 940 . . . . 221 120 220 63 545 1455 Maximum Alert Level 5 | . . . 1 . 1 2 . 2 . . . . . 2 3 2 4 4 . . . . 2 1 2 1 5 5 Low Security (%) 50 | 100 100 100 88 100 50 37 100 4 . . . . 100 64 . . 16 . . . . . 41 82 50 92 39 . Level 1 19 | . . . 11 . 49 35 . 11 . . . . . 23 51 44 19 . . . . . 36 17 41 7 8 . Level 2 14 | . . . . . . 27 . 83 . . . . . 12 24 55 21 20 . . . . 21 . 8 . 24 . Level 3 7 | . . . . . . . . . . . . . . . 24 . 28 65 . . . . . . . . 12 27 Level 4 4 | . . . . . . . . . . . . . . . . . 12 14 . . . . . . . . 10 32 Level 5 2 | . . . . . . . . . . . . . . . . . . . . . . . . . . . 3 22 High Security 1 | . . . . . . . . . . . . . . . . . . . . . . . . . . . . 17 Max Security . | . . . . . . . . . . . . . . . . . . . . . . . . . . . . . Squads Dispatched 87 | . 5 . 3 . 1 7 . 4 . . . 1 2 . . . 6 7 . . . . 6 4 . 2 18 21 Investigation 13 | . 2 . 1 . . 2 . 2 . . . . . . . . 2 . . . . . 1 1 . 1 . 1 Extermination 11 | . . . . . . 2 . . . . . . . . . . . 1 . . . . 2 . . . 3 3 Reinforcement 33 | . 3 . 2 . 1 1 . . . . . . 2 . . . 4 . . . . . 3 3 . 1 8 5 Assault 25 | . . . . . . 1 . 2 . . . 1 . . . . . 3 . . . . . . . . 6 12 Garrison 5 | . . . . . . 1 . . . . . . . . . . . 3 . . . . . . . . 1 . Intercept . | . . . . . . . . . . . . . . . . . . . . . . . . . . . . . Construction Impeded 6 | . . . . . . 1 . . . . . . . . . . 1 . . . . . . . . . 3 1 Haulers Reinforced 9 | . . . . . . . . . . . . . 1 . . . 1 . . . . . 3 1 . . 1 2 Active Scanning Responses . | . . . . . . . . . . . . . . . . . . . . . . . . . . . . . Cargo Convoy Interrupts . | . . . . . . . . . . . . . . . . . . . . . . . . . . . . . Stealth | -11 -10 -10 -9 -9 -8 -7 -7 -7 -7 -7 -7 -6 -6 -6 -6 -6 -6 -5 -5 -5 -5 -4 -4 -3 -3 -2 -2 -1 --------- Run | Scr Mat Min Mat Min Mat Fac Was Fac Low Low Dat Pro Fac Ext Cet Arc Hub Fac Upp Upp War Pro Fac Res Qua Res Tes Acc Distress Signals 35 | . 1 . 3 . 2 1 . . . . . . . 4 2 . 1 . . . . . 1 6 1 10 2 1 Communications Jammed . | . . . . . . . . . . . . . . . . . . . . . . . . . . . . . Distress Signals . | . . . . . . . . . . . . . . . . . . . . . . . . . . . . . Times Spotted 571 | . 22 4 27 14 30 34 4 17 13 1 . 27 1 36 16 2 18 7 7 9 2 10 37 11 24 6 78 114 Peak Tracking Total 16 | . 7 3 8 6 6 5 1 6 8 . . 10 1 4 5 1 7 2 4 4 2 5 8 4 4 3 16 16 Tactical Retreats 33 | . 1 1 2 . 2 1 . . . . . 4 . 3 . . 1 . . 2 . . . 1 1 . 11 3 Traps | -11 -10 -10 -9 -9 -8 -7 -7 -7 -7 -7 -7 -6 -6 -6 -6 -6 -6 -5 -5 -5 -5 -4 -4 -3 -3 -2 -2 -1 ------- Run | Scr Mat Min Mat Min Mat Fac Was Fac Low Low Dat Pro Fac Ext Cet Arc Hub Fac Upp Upp War Pro Fac Res Qua Res Tes Acc Traps Triggered 14 | . 5 . 1 . . 2 . . . . . . . . . . 2 1 . . . . 1 . 2 . . . Indirectly . | . . . . . . . . . . . . . . . . . . . . . . . . . . . . . Trap Hack Attempts 81 | . . . . . 12 41 . . . . . . . . . . . . . . . . . . . . . 28 Triggered 1 | . . . . . . 1 . . . . . . . . . . . . . . . . . . . . . . Disarmed 1 | . . . . . . 1 . . . . . . . . . . . . . . . . . . . . . . Reprogrammed 14 | . . . 4 . 3 4 . . . . . . . . . . . . . . . . . . . . . 3 Reused 6 | . . . 2 . 1 1 . . . . . . . . . . . . . . . . . . . . . 2 Traps Extracted . | . . . . . . . . . . . . . . . . . . . . . . . . . . . . . Installed 3 | . . . . . 1 2 . . . . . . . . . . . . . . . . . . . . . . Triggered 16 | . . . 2 . 1 1 . . . . . . . . . . . . . . 10 . . . . . . 2 Machines | -11 -10 -10 -9 -9 -8 -7 -7 -7 -7 -7 -7 -6 -6 -6 -6 -6 -6 -5 -5 -5 -5 -4 -4 -3 -3 -2 -2 -1 ---------- Run | Scr Mat Min Mat Min Mat Fac Was Fac Low Low Dat Pro Fac Ext Cet Arc Hub Fac Upp Upp War Pro Fac Res Qua Res Tes Acc Machines Disabled 44 | . . . . . 4 . . . 1 . . 1 . 2 . 2 9 . . . . . 1 . 11 1 6 6 Max in Single Turn 7 | . . . . . 4 . . . 1 . . 1 . 1 . 2 7 . . . . . 1 . 1 1 1 1 Garrison Access 7 | . . . . . . 1 . 1 . . . . . . . . . . . . . . . . . 2 1 2 Network Hub 3 | . . . . . . . . . . . . . . . . . 3 . . . . . . . . . . . Energy Cycler 1 | . . . . . . . . . . . . . . 1 . . . . . . . . . . . . . . Machines Sabotaged 1 | . . . . . . . . . . . . . . . . . 1 . . . . . . . . . . . Garrisons Compromised . | . . . . . . . . . . . . . . . . . . . . . . . . . . . . . Overloaded Fab Kills . | . . . . . . . . . . . . . . . . . . . . . . . . . . . . . Fab Network Shutdowns 1 | . . . . . . . . . . . . . . . . . . 1 . . . . . . . . . . Hacking | -11 -10 -10 -9 -9 -8 -7 -7 -7 -7 -7 -7 -6 -6 -6 -6 -6 -6 -5 -5 -5 -5 -4 -4 -3 -3 -2 -2 -1 --------- Run | Scr Mat Min Mat Min Mat Fac Was Fac Low Low Dat Pro Fac Ext Cet Arc Hub Fac Upp Upp War Pro Fac Res Qua Res Tes Acc Machines Accessed 105 | . 5 1 8 1 8 8 . 7 2 . 3 . 1 7 1 . 7 4 . 1 1 . 3 3 15 3 12 4 Terminals 68 | . 4 1 6 . 6 5 . 4 . . . . 1 7 1 . 7 2 . . . . 2 2 12 1 5 2 Fabricators 6 | . . . . . . . . 1 . . . . . . . . . 1 . . . . 1 . . . 2 1 Repair Stations 7 | . . . 1 . 1 1 . . . . . . . . . . . . . . . . . . 2 . 2 . Recycling Units 4 | . 1 . 1 . . 1 . . . . . . . . . . . . . . . . . . . 1 . . Scanalyzers 6 | . . . . . 1 . . 1 . . . . . . . . . . . . . . . 1 1 . 2 . Garrison Access 6 | . . . . . . 1 . 1 . . . . . . . . . 1 . . . . . . . 1 1 1 Total Hacks 382 | . 15 4 24 1 27 15 . 21 7 . 23 . 1 20 6 . 19 24 . 1 1 . 12 21 76 11 45 8 Successful 181 | . 5 3 14 1 12 4 . 12 7 . 23 . 1 7 . . 9 7 . 1 1 . 5 12 32 3 20 2 Failed 200 | . 9 1 10 . 15 11 . 9 . . . . . 13 6 . 10 17 . . . . 7 9 44 8 25 6 Catastrophic 44 | . 2 . 5 . 5 . . . . . . . . 5 2 . 4 3 . . . . 2 5 6 . 3 2 Database Lockouts 1 | . 1 . . . . . . . . . . . . . . . . . . . . . . . . . . . Manual 141 | . 11 4 13 . 14 5 . 4 . . . . . 12 1 . 13 12 . . 1 . 2 3 23 8 13 2 Terminals 249 | . 13 4 18 . 16 10 . 10 . . . . 1 20 6 . 19 12 . . . . 8 16 61 3 26 6 Fabricators 20 | . . . . . . . . 3 . . . . . . . . . 6 . . . . 4 . . . 6 1 Repair Stations 26 | . . . 4 . 5 2 . . . . . . . . . . . . . . . . . . 9 . 6 . Recycling Units 8 | . 2 . 2 . . 2 . . . . . . . . . . . . . . . . . . . 2 . . Scanalyzers 28 | . . . . . 6 . . 5 . . . . . . . . . . . . . . . 5 6 . 6 . Garrison Access 18 | . . . . . . 1 . 3 . . . . . . . . . 6 . . . . . . . 6 1 1 Terminal Hacks 102 | . 4 3 7 1 1 . . 4 7 . 23 . 1 5 . . 5 . . 1 1 . 2 7 17 2 10 1 Record 12 | . . . . . . . . . 6 . 6 . . . . . . . . . . . . . . . . . Part Schematic 10 | . . 1 . . . . . . . . 8 . . . . . . . . . . . . . 1 . . . Robot Schematic 6 | . . . . . . . . . . . 6 . . . . . . . . . . . . . . . . . Robot Analysis 6 | . 1 1 1 . 1 . . . . . . . . . . . . . . . . . . . 1 . 1 . Prototype ID Bank 14 | . . . 1 . . . . 1 . . 3 . . 2 . . . . . . . . 1 1 4 . 1 . Open Door 6 | . . . . 1 . . . . 1 . . . 1 . . . . . . 1 1 . . . . . . 1 Level Access Points 1 | . . . . . . . . . . . . . . . . . . . . . . . . . . . 1 . Branch Access Points 3 | . . . 1 . . . . . . . . . . . . . . . . . . . . 1 . 1 . . Emergency Access Points 1 | . . . . . . . . . . . . . . . . . 1 . . . . . . . . . . . Machine Index 1 | . . . . . . . . . . . . . . . . . . . . . . . . . 1 . . . Terminal Index 1 | . . . . . . . . . . . . . . . . . 1 . . . . . . . . . . . Fabricator Index 1 | . . . . . . . . 1 . . . . . . . . . . . . . . . . . . . . Unreport Threat 14 | . 1 1 1 . . . . . . . . . . 2 . . . . . . . . 1 3 3 1 1 . Locate Traps 6 | . . . . . . . . . . . . . . . . . 1 . . . . . . 1 2 . 2 . Reprogram Traps 2 | . . . 2 . . . . . . . . . . . . . . . . . . . . . . . . . Recall Investigation 1 | . 1 . . . . . . . . . . . . . . . . . . . . . . . . . . . Registered Components 2 | . . . . . . . . . . . . . . . . . . . . . . . . . 1 . 1 . Registered Prototypes 4 | . . . . . . . . 1 . . . . . . . . . . . . . . . 1 1 . 1 . Zone Layout 9 | . 1 . 1 . . . . 1 . . . . . 1 . . 2 . . . . . . . 3 . . . Protovariant Controls 2 | . . . . . . . . . . . . . . . . . . . . . . . . . . . 2 . Fabricator Hacks 9 | . . . . . . . . 2 . . . . . . . . . 3 . . . . 2 . . . 2 . Load Schematic 4 | . . . . . . . . 1 . . . . . . . . . 1 . . . . 1 . . . 1 . Build 5 | . . . . . . . . 1 . . . . . . . . . 2 . . . . 1 . . . 1 . Repair Station Hacks 17 | . . . 4 . 4 1 . . . . . . . . . . . . . . . . . . 5 . 3 . Scan Component 10 | . . . 2 . 2 1 . . . . . . . . . . . . . . . . . . 3 . 2 . Repair 7 | . . . 2 . 2 . . . . . . . . . . . . . . . . . . . 2 . 1 . Recycling Unit Hacks 1 | . . . 1 . . . . . . . . . . . . . . . . . . . . . . . . . Retrieve Components 1 | . . . 1 . . . . . . . . . . . . . . . . . . . . . . . . . Scanalyzer 19 | . . . . . 6 . . 4 . . . . . . . . . . . . . . . 5 3 . 1 . Insert Component 11 | . . . . . 2 . . 2 . . . . . . . . . . . . . . . 3 3 . 1 . Analyze 8 | . . . . . 4 . . 2 . . . . . . . . . . . . . . . 2 . . . . Garrison Access Hacks 1 | . . . . . . . . . . . . . . . . . . . . . . . . . . . 1 . Seal Access 1 | . . . . . . . . . . . . . . . . . . . . . . . . . . . 1 . Unauthorized Hacks 32 | . 1 . 2 . 1 3 . 2 . . . . . 2 . . 4 4 . . . . 1 . 7 1 3 1 Terminals 22 | . 1 . 2 . 1 2 . 1 . . . . . 2 . . 4 1 . . . . 1 . 7 . . . Track 3 | . . . . . . . . . . . . . . . . . 1 . . . . . . . 2 . . . Assimilate 1 | . . . 1 . . . . . . . . . . . . . . . . . . . . . . . . . Botnet 15 | . 1 . 1 . 1 2 . 1 . . . . . 1 . . 1 1 . . . . 1 . 5 . . . Disrupt 1 | . . . . . . . . . . . . . . 1 . . . . . . . . . . . . . . Sabotage 2 | . . . . . . . . . . . . . . . . . 2 . . . . . . . . . . . Fabricators 2 | . . . . . . . . . . . . . . . . . . 1 . . . . . . . . 1 . Prioritize 1 | . . . . . . . . . . . . . . . . . . 1 . . . . . . . . . . Siphon 1 | . . . . . . . . . . . . . . . . . . . . . . . . . . . 1 . Repair Stations . | . . . . . . . . . . . . . . . . . . . . . . . . . . . . . Recycling Units . | . . . . . . . . . . . . . . . . . . . . . . . . . . . . . Scanalyzers 2 | . . . . . . . . . . . . . . . . . . . . . . . . . . . 2 . Researchers 2 | . . . . . . . . . . . . . . . . . . . . . . . . . . . 2 . Garrison Access 6 | . . . . . . 1 . 1 . . . . . . . . . 2 . . . . . . . 1 . 1 Reprogram 2 | . . . . . . . . . . . . . . . . . . 2 . . . . . . . . . . Jam 4 | . . . . . . 1 . 1 . . . . . . . . . . . . . . . . . 1 . 1 Data Cores Recovered 3 | . . . . . 1 2 . . . . . . . . . . . . . . . . . . . . . . Used . | . . . . . . . . . . . . . . . . . . . . . . . . . . . . . Hacking Detections 86 | . 5 1 7 . 7 7 . 7 . . . . . 7 1 . 6 4 . . . . 2 2 15 3 9 3 Full Trace Events 5 | . . . 1 . 1 1 . 1 . . . . . . . . . . . . . . 1 . . . . . Feedback Events . | . . . . . . . . . . . . . . . . . . . . . . . . . . . . . Feedback Blocked . | . . . . . . . . . . . . . . . . . . . . . . . . . . . . . Robot Schematics Acquired 6 | . . . . . . . . . . . 6 . . . . . . . . . . . . . . . . . Robots Built . | . . . . . . . . . . . . . . . . . . . . . . . . . . . . . Matter . | . . . . . . . . . . . . . . . . . . . . . . . . . . . . . Time . | . . . . . . . . . . . . . . . . . . . . . . . . . . . . . Total Robot Build Rating . | . . . . . . . . . . . . . . . . . . . . . . . . . . . . . Part Schematics Acquired 15 | . . 1 . . 2 . . 2 . . 8 . . . . . . . . . . . . 1 1 . . . Parts Built 7 | . . . . . . . . 2 . . . . . . . . . 3 . . . . 1 . . . 1 . Matter 1246 | . . . . . . . . 212 . . . . . . . . . 640 . . . . 318 . . . 76 . Time 547 | . . . . . . . . 106 . . . . . . . . . 332 . . . . 84 . . . 25 . Total Part Build Rating 43 | . . . . . . . . 12 . . . . . . . . . 24 . . . . 6 . . . 1 . Parts Repaired 7 | . . . 2 . 2 . . . . . . . . . . . . . . . . . . . 2 . 1 . Time 260 | . . . 52 . 64 . . . . . . . . . . . . . . . . . . . 70 . 74 . Parts Recycled . | . . . . . . . . . . . . . . . . . . . . . . . . . . . . . Recycled Matter . | . . . . . . . . . . . . . . . . . . . . . . . . . . . . . Retrieved Matter . | . . . . . . . . . . . . . . . . . . . . . . . . . . . . . Retrieved Components 9 | . . . 9 . . . . . . . . . . . . . . . . . . . . . . . . . Parts Scanalyzed 5 | . . . . . 2 . . 2 . . . . . . . . . . . . . . . 1 . . . . Part Schematics Acquired 5 | . . . . . 2 . . 2 . . . . . . . . . . . . . . . 1 . . . . Parts Damaged 1 | . . . . . . . . 1 . . . . . . . . . . . . . . . . . . . . Bothacking | -11 -10 -10 -9 -9 -8 -7 -7 -7 -7 -7 -7 -6 -6 -6 -6 -6 -6 -5 -5 -5 -5 -4 -4 -3 -3 -2 -2 -1 ------------ Run | Scr Mat Min Mat Min Mat Fac Was Fac Low Low Dat Pro Fac Ext Cet Arc Hub Fac Upp Upp War Pro Fac Res Qua Res Tes Acc Used RIF Installer . | . . . . . . . . . . . . . . . . . . . . . . . . . . . . . Robots Hacked . | . . . . . . . . . . . . . . . . . . . . . . . . . . . . . Non-combat . | . . . . . . . . . . . . . . . . . . . . . . . . . . . . . Combat . | . . . . . . . . . . . . . . . . . . . . . . . . . . . . . Robot Hacks Applied . | . . . . . . . . . . . . . . . . . . . . . . . . . . . . . Relay Couplers Released 15 | . . . . . . . . . . . . . . . . . . . . . . . . . 8 5 . 2 Machine Destruction 4 | . . . . . . . . . . . . . . . . . . . . . . . . . . 2 . 2 Programmers 11 | . . . . . . . . . . . . . . . . . . . . . . . . . 8 3 . . Robots Rewired 25 | . . . . . . . . . 2 . . 2 . 17 . . . . . . 3 . . . . . 1 . Allies Hacked . | . . . . . . . . . . . . . . . . . . . . . . . . . . . . . Hacks Repelled . | . . . . . . . . . . . . . . . . . . . . . . . . . . . . . Allies | -11 -10 -10 -9 -9 -8 -7 -7 -7 -7 -7 -7 -6 -6 -6 -6 -6 -6 -5 -5 -5 -5 -4 -4 -3 -3 -2 -2 -1 -------- Run | Scr Mat Min Mat Min Mat Fac Was Fac Low Low Dat Pro Fac Ext Cet Arc Hub Fac Upp Upp War Pro Fac Res Qua Res Tes Acc Total Allies 68 | . . . 1 . . . 20 . 2 . . 3 . 19 5 . 3 5 . . 3 . . . . . 1 6 Largest Group 20 | . . . 1 . . . 20 14 8 2 2 2 2 11 7 6 5 4 1 . 3 3 1 . . . 1 1 Highest-Rated Group 653 | . . . 10 . . . 508 384 231 63 63 95 49 425 653 625 459 84 30 . 157 157 65 . . . 149 215 Highest-Rated Ally 215 | . . . 10 . . . 35 32 32 32 32 95 29 156 156 150 95 30 30 . 65 65 65 . . . 149 215 Total Orders 9 | . . . 1 . . . . . . . . . . 4 . . . . . . . . . . . . . 4 STAY 3 | . . . 1 . . . . . . . . . . 2 . . . . . . . . . . . . . . FOLLOW 2 | . . . . . . . . . . . . . . 2 . . . . . . . . . . . . . . EXPLORE 1 | . . . . . . . . . . . . . . . . . . . . . . . . . . . . 1 RETURN 3 | . . . . . . . . . . . . . . . . . . . . . . . . . . . . 3 Ally Attacks 791 | . . . . . . . 173 113 42 . . 21 7 106 103 23 85 29 3 . 3 14 . . . . 14 55 Total Damage 17585 | . . . . . . . 2725 1824 734 . . 399 101 2303 2755 918 3144 369 36 . 80 226 . . . . 904 1067 Kills 117 | . . . . . . . 7 15 8 . . 4 1 23 17 4 20 4 . . 3 1 . . . . 6 4 Allies Corrupted 3 | . . . . . . . . . 2 . . . . . . . 1 . . . . . . . . . . . Allies Melted 1 | . . . . . . . . . . . . . . 1 . . . . . . . . . . . . . . Intel | -11 -10 -10 -9 -9 -8 -7 -7 -7 -7 -7 -7 -6 -6 -6 -6 -6 -6 -5 -5 -5 -5 -4 -4 -3 -3 -2 -2 -1 ------- Run | Scr Mat Min Mat Min Mat Fac Was Fac Low Low Dat Pro Fac Ext Cet Arc Hub Fac Upp Upp War Pro Fac Res Qua Res Tes Acc Robot Analysis Total 6 | . 1 1 1 . 1 . . . . . . . . . . . . . . . . . . . 1 . 1 . Derelict Logs Recovered 14 | . . 2 . 1 . . . . 2 2 . 3 . . . . . . 2 1 . 1 . . . . . . Drone Launches 50 | . . . . . . . . . . . . . . . . . . . . . . . . . . . . 50 Drone Recoveries 45 | . . . . . . . . . . . . . . . . . . . . . . . . . . . . 45 Exploration | -11 -10 -10 -9 -9 -8 -7 -7 -7 -7 -7 -7 -6 -6 -6 -6 -6 -6 -5 -5 -5 -5 -4 -4 -3 -3 -2 -2 -1 ------------- Run | Scr Mat Min Mat Min Mat Fac Was Fac Low Low Dat Pro Fac Ext Cet Arc Hub Fac Upp Upp War Pro Fac Res Qua Res Tes Acc Turns Passed 29149 | 79 802 977 1151 982 1816 1247 706 933 1710 883 127 871 297 1751 349 670 496 991 1135 1151 1202 821 812 545 2494 515 1926 1710 Spaces Moved 13723 | 46 375 589 497 305 849 671 394 468 797 530 77 404 171 690 149 76 240 474 634 533 695 456 344 306 1221 299 838 595 Core 44 | 6 . . . . . . . . . . . . . . . 38 . . . . . . . . . . . . Treads 13102 | 40 375 589 497 305 849 145 343 468 797 530 77 404 171 690 149 38 240 474 634 533 695 456 344 306 1221 299 838 595 Legs . | . . . . . . . . . . . . . . . . . . . . . . . . . . . . . Wheels 577 | . . . . . . 526 51 . . . . . . . . . . . . . . . . . . . . . Hover . | . . . . . . . . . . . . . . . . . . . . . . . . . . . . . Flight . | . . . . . . . . . . . . . . . . . . . . . . . . . . . . . Fastest Speed 50 | 50 160 160 160 160 160 115 130 165 165 165 165 160 160 160 160 160 160 160 163 163 163 163 166 166 160 155 135 135 Average Speed 167 | 145 160 160 180 259 166 136 160 165 196 165 165 163 160 160 161 805 160 163 164 163 163 163 166 166 165 159 140 135 Slowest Speed 1450 | 160 160 160 260 260 170 170 165 165 260 165 165 165 160 166 166 1450 160 165 165 163 163 163 170 170 260 160 155 135 Overloaded Moves . | . . . . . . . . . . . . . . . . . . . . . . . . . . . . . Propulsion Burnouts . | . . . . . . . . . . . . . . . . . . . . . . . . . . . . . Robots Hopped 1 | . . . . . . . . . . . . . . 1 . . . . . . . . . . . . . . Cave-ins Triggered . | . . . . . . . . . . . . . . . . . . . . . . . . . . . . . Exploration Rate (%) 53 | 4 57 99 50 42 70 27 96 17 80 68 72 56 6 86 59 78 41 13 72 67 86 58 12 14 96 24 83 15 Regions Visited 28 Branch Regions 16 Pre-discovered Areas 8 | . . . . 1 . . . . 3 . 1 2 . . . . . . . 1 . . . . . . . . Known Exits Taken 7 | . . . 1 . . . . . . . . 1 1 . . . . . 1 . . . . 1 . 1 1 . Unknown Exits Taken 19 | 1 1 1 . 1 1 . . 1 1 1 1 . . 1 1 1 1 1 . 1 1 1 1 . 1 . . . Scrap Searched 12 | . . 2 . . . . . . 2 3 . 3 . . . . . . 2 . . . . . . . . . Spaces Dug 88 | . . . . 11 . 1 . 1 12 . . . . . . . 9 1 1 19 . . . . 3 . 29 1 Terrain Destroyed 861 | . . . 6 39 65 6 . 3 13 . . 25 . 6 . . 342 7 36 32 . . . . 20 34 95 132 Melee 50 | . . . . . . 1 . 1 12 . . . . . . . 3 1 1 19 . . . . 2 . 9 1 Projectile 179 | . . . . . . . . 2 1 . . 3 . 6 . . 6 6 35 13 . . . . 18 2 33 54 AOE 632 | . . . 6 39 65 5 . . . . . 22 . . . . 333 . . . . . . . . 32 53 77 Terrain Rammed . | . . . . . . . . . . . . . . . . . . . . . . . . . . . . . Walls Destroyed . | . . . . . . . . . . . . . . . . . . . . . . . . . . . . . Machines Disabled . | . . . . . . . . . . . . . . . . . . . . . . . . . . . . . Actions | -11 -10 -10 -9 -9 -8 -7 -7 -7 -7 -7 -7 -6 -6 -6 -6 -6 -6 -5 -5 -5 -5 -4 -4 -3 -3 -2 -2 -1 --------- Run | Scr Mat Min Mat Min Mat Fac Was Fac Low Low Dat Pro Fac Ext Cet Arc Hub Fac Upp Upp War Pro Fac Res Qua Res Tes Acc Total 18345 | 55 484 616 697 469 1171 939 457 616 886 534 77 531 189 1258 213 133 330 656 678 738 764 511 496 333 1553 321 1389 1251 Wait 2699 | . 35 4 113 139 194 151 16 130 38 3 1 36 4 251 17 53 55 150 15 167 26 32 75 7 167 . 368 452 Move 13693 | 45 374 588 496 304 848 671 393 467 796 529 76 403 170 687 148 75 239 473 633 532 694 455 343 305 1220 298 837 594 Hop 1 | . . . . . . . . . . . . . . 1 . . . . . . . . . . . . . . Pick Up 157 | 4 10 10 9 1 14 11 10 2 4 . . 2 1 8 7 1 2 7 1 . 9 3 4 1 17 2 10 7 Fast Attach 120 | 6 5 . 4 2 11 4 6 3 1 . . 2 4 3 2 . 5 3 2 1 8 . 6 3 22 2 12 3 Attach 79 | . 2 1 3 . 3 3 . . 1 . . 7 4 . 1 . 8 2 2 . . . 6 4 11 2 4 15 Detach 47 | . . . 1 . . 4 1 2 . . . 1 4 . 1 . 2 2 1 . 3 . 6 4 8 1 3 3 Swap 158 | . 2 2 14 3 13 12 4 4 7 . . 5 . 1 4 1 6 3 6 4 4 7 5 1 8 6 18 18 Drop 192 | . 3 5 20 3 24 8 19 2 4 . . 1 . 5 12 2 1 3 . . 15 3 5 1 28 2 22 4 Fire 679 | . 51 5 33 15 49 31 8 4 12 2 . 40 2 30 10 1 7 11 17 15 1 11 42 3 68 8 91 112 Melee 90 | . . . . . . 1 . 1 13 . . . . . 11 . 4 1 1 19 4 . . . 2 . 20 13 Ram . | . . . . . . . . . . . . . . . . . . . . . . . . . . . . . Kick . | . . . . . . . . . . . . . . . . . . . . . . . . . . . . . Crush 33 | . 2 1 4 2 2 . . 1 . . . . . 4 . . 1 . . . . . 4 4 2 . 4 2 Escape Stasis 1 | . . . . . . . . . . . . . . . . . . 1 . . . . . . . . . . Rewire 312 | . . . . . . . . . 10 . . 34 . 268 . . . . . . . . . . . . . . Trap 84 | . . . . . 13 43 . . . . . . . . . . . . . . . . . . . . . 28 Miscellaneous . | . . . . . . . . . . . . . . . . . . . . . . . . . . . . . Route ------- -11/Scrapyard -10/Materials (discovered 3 exits: *Mat x2 / *Min) -10/Mines (discovered 2 exits: *Mat x2) -9/Materials (discovered 4 exits: *Mat x2 / *Min x2) -9/Mines -8/Materials (discovered 2 exits: *Fac x2) -7/Factory -7/Waste -7/Factory (discovered 3 exits: *Fac / *Low x2) -7/Lower Caves (discovered 2 exits: [*Low] / [*Zio]) -7/Lower Caves -7/Data Miner -6/Proximity Caves -6/Factory -6/Extension (discovered 2 exits: *Fac / *Cet) -6/Cetus (discovered 2 exits: *Fac / [*Arc]) -6/Archives (discovered 2 exits: *Hub x2) -6/Hub_04(d) (discovered 2 exits: *Fac x2) -5/Factory -5/Upper Caves -5/Upper Caves -5/Warlord -4/Proximity Caves -4/Factory -3/Research (discovered 3 exits: *Arm / *Qua x2) -3/Quarantine -2/Research (discovered 2 exits: *Tes x2) -2/Testing -1/Access To Epsilon Eridani History --------- Turn | Location | Event 6 | -11/Scrapyard | Discovered new exit (range 13) 80 | -11/Scrapyard | Entered Materials 278 | -10/Materials | Discovered new exit (range 15) 308 | -10/Materials | Build established: Mutant 352 | -10/Materials | Central database locked down 590 | -10/Materials | Discovered new exit (range 13) 729 | -10/Materials | Discovered new exit (range 16) 882 | -10/Materials | Entered Mines 903 | -10/Mines | Discovered new exit (range 11) 1093 | -10/Mines | Found a hidden stash of uninstalled traps 1117 | -10/Mines | Learned Materials emergency access door positions 1220 | -10/Mines | Discovered new exit (range 12) 1417 | -10/Mines | Received a Rocket Launcher from a helpful Derelict 1859 | -10/Mines | Entered Materials 1859 | -9/Materials | Evolved 2 slots: Weapon x2 1884 | -9/Materials | Identified exit to Mines 2150 | -9/Materials | Build established: Scavenger-Tank 2203 | -9/Materials | Discovered new exit (range 15) 2358 | -9/Materials | Destroyed 8 combat bots 2608 | -9/Materials | Repaired Lgt. Assault Rifle 2635 | -9/Materials | Repaired Lgt. Treads 2715 | -9/Materials | Discovered new exit (range 15) 3010 | -9/Materials | Entered Mines 3012 | -9/Mines | Met a Derelict bent on vengeance 3030 | -9/Mines | Build established: Tank 3052 | -9/Mines | Learned location of Zion (-6) 3217 | -9/Mines | Found the Drone Emporium 3232 | -9/Mines | Found Prototype Device 3232 | -9/Mines | Identified Splice Drone Bay 3264 | -9/Mines | Assembled infested the area 3807 | -9/Mines | Discovered new exit (range 11) 3992 | -9/Mines | Entered Materials 3992 | -8/Materials | Evolved 2 slots: Propulsion x1, Utility x1 4164 | -8/Materials | Destroyed 7 combat bots 4229 | -8/Materials | Repaired Hrd. Light Armor Plating 4263 | -8/Materials | Repaired Autogun 4516 | -8/Materials | Discovered new exit (range 15) 4533 | -8/Materials | Build established: Scavenger-Tank 4872 | -8/Materials | Build established: Tank 5310 | -8/Materials | Discovered new exit (range 17) 5808 | -8/Materials | Entered Factory 5808 | -7/Factory | Evolved 2 slots: Utility x1, Weapon x1 6156 | -7/Factory | Build established: Gunner 6773 | -7/Factory | Discovered new exit (range 20) 6820 | -7/Factory | Identified exit to Factory 6991 | -7/Factory | Garrison activated, responded to threat 7008 | -7/Factory | First assault squad dispatched 7055 | -7/Factory | Sucked down chute 7055 | -7/Factory | Entered Waste 7056 | -7/Waste | Met a frightened Derelict 7067 | -7/Waste | Spotted C-40 Crusher 7089 | -7/Waste | Warlord forces began an assault 7093 | -7/Waste | Allies destroyed C-40 Crusher 7111 | -7/Waste | Spotted C-40 Crusher 7118 | -7/Waste | Allies destroyed C-40 Crusher 7135 | -7/Waste | Spotted C-40 Crusher 7143 | -7/Waste | Allies destroyed C-40 Crusher 7145 | -7/Waste | Spotted C-40 Crusher 7150 | -7/Waste | Allies destroyed C-40 Crusher 7155 | -7/Waste | Spotted C-40 Crusher 7166 | -7/Waste | Allies destroyed C-40 Crusher 7182 | -7/Waste | Spotted C-40 Crusher 7193 | -7/Waste | Allies destroyed C-40 Crusher 7353 | -7/Waste | Discovered new exit (range 13) 7761 | -7/Waste | Entered Factory 7761 | -7/Factory | Accompanied by 14 allies 7798 | -7/Factory | Build established: Derelict-Gunner 8130 | -7/Factory | Discovered new exit (range 18) 8142 | -7/Factory | Build established: Hacker-Skirmisher 8161 | -7/Factory | First assault squad dispatched 8194 | -7/Factory | Discovered exit to Factory (range 20) 8400 | -7/Factory | Fabricated Hvy. Treads (x2) 8540 | -7/Factory | Build established: Derelict-Gunner 8631 | -7/Factory | Discovered new exit (range 15) 8694 | -7/Factory | Entered Lower Caves 8694 | -7/Lower Caves | Accompanied by 8 allies 8930 | -7/Lower Caves | Learned location of Extension (-6) 9106 | -7/Lower Caves | Learned Research emergency access door positions 9106 | -7/Lower Caves | Learned Armory terminal intel 9528 | -7/Lower Caves | Broken Arm. Medium Treads stolen by Master Thief 9810 | -7/Lower Caves | Attracted the attention of an 0b10 outpost 10209 | -7/Lower Caves | Attacked by a delusional Derelict stockpiling parts 10296 | -7/Lower Caves | Discovered new exit (range 11) 10313 | -7/Lower Caves | A Derelict revealed a hidden shortcut to a safe place 10404 | -7/Lower Caves | Entered another Lower Caves area 10404 | -7/Lower Caves | Accompanied by 2 allies 10624 | -7/Lower Caves | Attracted the attention of an 0b10 checkpoint 10725 | -7/Lower Caves | Learned Factory security intel 10908 | -7/Lower Caves | Discovered new exit (range 11) 11167 | -7/Lower Caves | Learned 4 Factory zone layouts 11287 | -7/Lower Caves | Entered Data Miner 11287 | -7/Data Miner | Accompanied by 2 allies 11287 | -7/Data Miner | Discovered new exit (range 6) 11312 | -7/Data Miner | Met Data Miner 11349 | -7/Data Miner | Learned location of Section 7 (-2) 11349 | -7/Data Miner | Acquired the access code to Warlord's prototype stash 11372 | -7/Data Miner | Received God Mode back door access code from Data Miner 11414 | -7/Data Miner | Entered Proximity Caves 11414 | -6/Proximity Caves | Accompanied by 2 allies 11472 | -6/Proximity Caves | Escorted by Enhanced Grunt 11510 | -6/Proximity Caves | Attracted the attention of an 0b10 checkpoint 11879 | -6/Proximity Caves | Attracted the attention of an 0b10 outpost 11921 | -6/Proximity Caves | Destroyed 8 combat bots 11970 | -6/Proximity Caves | Lost 7 parts (1p1n1u4w) 12149 | -6/Proximity Caves | Discovered exit to Factory (range 7) 12208 | -6/Proximity Caves | Build established: Derelict-Tank 12285 | -6/Proximity Caves | Entered Factory 12285 | -6/Factory | Accompanied by 2 allies 12285 | -6/Factory | Evolved 2 slots: Propulsion x1, Utility x1 12286 | -6/Factory | Identified exit to Extension 12568 | -6/Factory | Lost 3 parts (1u2w) 12582 | -6/Factory | Entered Extension 12582 | -6/Extension | Accompanied by 2 allies 12716 | -6/Extension | Build established: Tank 13020 | -6/Extension | Rescued a captive Derelict 13389 | -6/Extension | Build established: Commander-Tank 13521 | -6/Extension | Spotted B-75 Beast 13538 | -6/Extension | Destroyed B-75 Beast 13552 | -6/Extension | Spotted B-75 Beast 13553 | -6/Extension | Destroyed B-75 Beast 13870 | -6/Extension | Rescued A7 13877 | -6/Extension | Energy Cycler disabled 14300 | -6/Extension | Discovered new exit (range 12) 14301 | -6/Extension | Discovered new exit (range 8) 14333 | -6/Extension | Entered Cetus 14333 | -6/Cetus | Accompanied by 7 allies (A7) 14338 | -6/Cetus | Acquired a Cetus Manufacturing Module code from A7 14353 | -6/Cetus | Spotted Cetus Guard 14353 | -6/Cetus | Spotted Cetus Guard 14359 | -6/Cetus | Allies destroyed Cetus Guard 14360 | -6/Cetus | Spotted Cetus Guard 14363 | -6/Cetus | Spotted Cetus Guard 14365 | -6/Cetus | Allies destroyed Cetus Guard 14371 | -6/Cetus | Allies destroyed Cetus Guard 14373 | -6/Cetus | Allies destroyed Cetus Guard 14470 | -6/Cetus | Started Cetus Manufacturing Module 14495 | -6/Cetus | Manufactured an Enhanced Grunt 14520 | -6/Cetus | Manufactured an Enhanced Grunt 14525 | -6/Cetus | Discovered new exit (range 20) 14545 | -6/Cetus | Manufactured an Enhanced Grunt 14570 | -6/Cetus | Manufactured an Enhanced Grunt 14571 | -6/Cetus | Spotted Cetus Guard 14572 | -6/Cetus | Spotted Cetus Guard 14572 | -6/Cetus | Spotted Cetus Guard 14576 | -6/Cetus | Spotted Cetus Guard 14583 | -6/Cetus | Allies destroyed Cetus Guard 14585 | -6/Cetus | Discovered new exit (range 20) 14594 | -6/Cetus | Allies destroyed Cetus Guard 14595 | -6/Cetus | Manufactured an Enhanced Grunt 14597 | -6/Cetus | Allies destroyed Cetus Guard 14599 | -6/Cetus | Allies destroyed Cetus Guard 14613 | -6/Cetus | Met Revision 17 14682 | -6/Cetus | Entered Archives 14682 | -6/Archives | Accompanied by 6 allies (A7) 14727 | -6/Archives | Discovered new exit (range 19) 14745 | -6/Archives | Discovered new exit (range 20) 15352 | -6/Archives | Entered Hub_04(d) 15352 | -6/Hub_04(d) | Accompanied by 5 allies 15594 | -6/Hub_04(d) | Discovered new exit (range 5) 15754 | -6/Hub_04(d) | Discovered new exit (range 15) 15774 | -6/Hub_04(d) | Incoming investigation squad redirected 15778 | -6/Hub_04(d) | Network Hub disabled 15787 | -6/Hub_04(d) | Network Hub disabled 15787 | -6/Hub_04(d) | Network Hub disabled 15798 | -6/Hub_04(d) | Spotted Lightning 15802 | -6/Hub_04(d) | Spotted Lightning 15804 | -6/Hub_04(d) | Spotted Lightning 15838 | -6/Hub_04(d) | System corruption reached 10% 15841 | -6/Hub_04(d) | System corruption reached 30% 15848 | -6/Hub_04(d) | Lost 4 parts (1p1u2w) 15848 | -6/Hub_04(d) | Entered Factory 15848 | -5/Factory | Evolved 2 slots: Utility x2 16019 | -5/Factory | Fabricated Arm. Heavy Treads (x2) 16048 | -5/Factory | Local fabrication network quarantined 16081 | -5/Factory | Build established: Scavenger-Tank 16129 | -5/Factory | Fabricated Exp. Sensor Array (x1) 16148 | -5/Factory | First assault squad dispatched 16168 | -5/Factory | Incoming assault squad redirected 16173 | -5/Factory | Incoming assault squad redirected 16372 | -5/Factory | Discovered new exit (range 16) 16387 | -5/Factory | Garrison activated, responded to threat 16468 | -5/Factory | Incoming assault squad redirected 16839 | -5/Factory | Entered Upper Caves 16839 | -5/Upper Caves | Accompanied by 1 ally 17215 | -5/Upper Caves | Identified exit to Upper Caves 17251 | -5/Upper Caves | Learned Factory non-interactive machine intel 17523 | -5/Upper Caves | Found Alien Artifact 17523 | -5/Upper Caves | Identified Core Expander 17523 | -5/Upper Caves | Installed Core Expander, added new Propulsion slot 17668 | -5/Upper Caves | Encountered a Warlord checkpoint 17974 | -5/Upper Caves | Entered another Upper Caves area 18289 | -5/Upper Caves | Encountered a Warlord checkpoint 18383 | -5/Upper Caves | Spotted B-75 Beast 18818 | -5/Upper Caves | Destroyed B-75 Beast 19066 | -5/Upper Caves | Discovered new exit (range 9) 19125 | -5/Upper Caves | Entered Warlord 19179 | -5/Warlord | System corruption cleaned by Quarantine Array 19692 | -5/Warlord | Found Prototype Energy Gun 19692 | -5/Warlord | Identified Plasma Storm 19788 | -5/Warlord | Met Warlord 19803 | -5/Warlord | Opened Warlord's prototype stash 19810 | -5/Warlord | Found Prototype Reactor 19813 | -5/Warlord | Warlord's base attacked by MAIN.C 19817 | -5/Warlord | Found Prototype Processor 19817 | -5/Warlord | Identified Exp. Targeting Computer 19831 | -5/Warlord | Found Prototype Processor 19831 | -5/Warlord | Identified Exp. Target Analyzer 19834 | -5/Warlord | Found Prototype Device 19834 | -5/Warlord | Identified System Purifier 19845 | -5/Warlord | Found Prototype Hackware 20111 | -5/Warlord | Build established: Tank 20149 | -5/Warlord | Found Prototype Energy Gun 20151 | -5/Warlord | Found Prototype Energy Gun 20159 | -5/Warlord | Found Prototype Energy Gun 20161 | -5/Warlord | Found Prototype Energy Gun 20163 | -5/Warlord | Warlord forces counterattacked 20305 | -5/Warlord | Discovered new exit (range 15) 20327 | -5/Warlord | Entered Proximity Caves 20327 | -4/Proximity Caves | Accompanied by 3 allies 20563 | -4/Proximity Caves | Learned Research emergency access door positions 20564 | -4/Proximity Caves | Build established: Scavenger-Tank 21116 | -4/Proximity Caves | Discovered new exit (range 5) 21148 | -4/Proximity Caves | Entered Factory 21148 | -4/Factory | Accompanied by 1 ally 21148 | -4/Factory | Evolved 2 slots: Power x1, Propulsion x1 21149 | -4/Factory | Loaded intel: 229 non-interactive machine locations 21149 | -4/Factory | Identified Vortex Chain Reactor 21198 | -4/Factory | Found Prototype Processor 21198 | -4/Factory | Identified Exp. Melee Analysis Suite 21440 | -4/Factory | Build established: Tank 21539 | -4/Factory | Destroyed 10 combat bots 21630 | -4/Factory | Fabricated Mni. Smartbomb Launcher (x1) 21795 | -4/Factory | Destroyed 7 combat bots 21857 | -4/Factory | Discovered new exit (range 9) 21960 | -4/Factory | Entered Research 21960 | -3/Research | Evolved 2 slots: Utility x2 21961 | -3/Research | Identified System Mapper 22004 | -3/Research | Found Prototype Processor 22004 | -3/Research | Identified Spectral Analyzer 22031 | -3/Research | Discovered new exit (range 6) 22160 | -3/Research | Revision forces began assault on 0b10 22222 | -3/Research | Met up with Revision 17++ 22305 | -3/Research | Identified exit to Armory 22305 | -3/Research | Identified exit to Quarantine 22483 | -3/Research | Identified Vortex Rifle (x2) 22483 | -3/Research | Identified Vortex Rail (x2) 22505 | -3/Research | Entered Quarantine 22550 | -3/Quarantine | Build established: Hacker-Skirmisher 22552 | -3/Quarantine | Cryocooling Duct disabled 22567 | -3/Quarantine | Ambient heat levels rising (+20) 22567 | -3/Quarantine | Non-combat units ordered to evacuate 22750 | -3/Quarantine | Found Alien Artifact 22786 | -3/Quarantine | Cryocooling Duct disabled 22801 | -3/Quarantine | Ambient heat levels rising (+20) 22801 | -3/Quarantine | Combat units ordered to evacuate 22901 | -3/Quarantine | Quarantine Guard activated 22931 | -3/Quarantine | Found Alien Artifact 23064 | -3/Quarantine | Spotted Quarantine Guard 23108 | -3/Quarantine | Destroyed Quarantine Guard 23109 | -3/Quarantine | Spotted Quarantine Guard 23153 | -3/Quarantine | Destroyed Quarantine Guard 23202 | -3/Quarantine | Spotted Quarantine Guard 23219 | -3/Quarantine | Spotted Quarantine Guard 23223 | -3/Quarantine | Destroyed Quarantine Guard 23240 | -3/Quarantine | Destroyed Quarantine Guard 23292 | -3/Quarantine | Spotted Quarantine Guard 23308 | -3/Quarantine | Spotted Quarantine Guard 23314 | -3/Quarantine | Destroyed Quarantine Guard 23335 | -3/Quarantine | Spotted Quarantine Guard 23357 | -3/Quarantine | Destroyed Quarantine Guard 23360 | -3/Quarantine | Spotted Quarantine Guard 23370 | -3/Quarantine | Destroyed Quarantine Guard 23466 | -3/Quarantine | Build established: Scavenger-Tank 23514 | -3/Quarantine | Repaired Centrium Medium Armor Plating 23539 | -3/Quarantine | Destroyed Quarantine Guard 23625 | -3/Quarantine | Repaired Broken Quantum Reactor 23739 | -3/Quarantine | Found Alien Artifact 23793 | -3/Quarantine | Spotted Quarantine Guard 23815 | -3/Quarantine | Destroyed Quarantine Guard 23927 | -3/Quarantine | Spotted Quarantine Guard 23934 | -3/Quarantine | Destroyed Quarantine Guard 24237 | -3/Quarantine | Identified Core Reset Matrix 24256 | -3/Quarantine | Identified Subatomic Replicator 24266 | -3/Quarantine | Identified Matter Drive 24417 | -3/Quarantine | Spotted Quarantine Guard 24443 | -3/Quarantine | Destroyed Quarantine Guard 24624 | -3/Quarantine | Discovered new exit (range 7) 24624 | -3/Quarantine | Spotted Quarantine Guard 24629 | -3/Quarantine | Destroyed Quarantine Guard 24729 | -3/Quarantine | Cryocooling Duct disabled 24733 | -3/Quarantine | Cryocooling Duct disabled 24744 | -3/Quarantine | Ambient heat levels rising (+20) 24748 | -3/Quarantine | Ambient heat levels rising (+20) 24917 | -3/Quarantine | Found Fusion Bomb Launcher 24920 | -3/Quarantine | Found Fusion Bomb Launcher 24999 | -3/Quarantine | Entered Research 24999 | -2/Research | Warlord forces began assault on 0b10 24999 | -2/Research | Evolved 2 slots: Utility x2 25021 | -2/Research | Build established: Scavenger-Mutant 25100 | -2/Research | Identified exit to Testing 25109 | -2/Research | Research machine network offline 25286 | -2/Research | Borebot progress halted 25398 | -2/Research | Met up with Warlord 25419 | -2/Research | Build established: Scavenger-Assassin 25425 | -2/Research | Spotted Striker 25433 | -2/Research | Destroyed Striker 25514 | -2/Research | Entered Testing 25799 | -2/Testing | Identified exit to Access 26006 | -2/Testing | Found Point Singularity Launcher 26017 | -2/Testing | Found Exp. Signal Interpreter 26029 | -2/Testing | Protovariant out of control (PX-UA6ZBFMDVN) 26029 | -2/Testing | Unleashed a protovariant (PX-UA6ZBFMDVN) 26061 | -2/Testing | Incoming assault squad redirected 26203 | -2/Testing | Spotted PG-CL9TZB2HXE 26208 | -2/Testing | Rewired PG-CL9TZB2HXE 26222 | -2/Testing | Fabricated Huge Storage Unit (x1) 26540 | -2/Testing | Found Prototype Energy Cannon 26764 | -2/Testing | First assault squad dispatched 26781 | -2/Testing | Incoming assault squad redirected 27126 | -2/Testing | Repaired Quantum Reactor 27145 | -2/Testing | Garrison activated, responded to threat 27292 | -2/Testing | Incoming assault squad redirected 27294 | -2/Testing | Incoming assault squad redirected 27323 | -2/Testing | Destroyed 14 combat bots 27440 | -2/Testing | Entered Access 27440 | -1/Access | Evolved 2 slots: Propulsion x2 27666 | -1/Access | Build established: Assassin 27940 | -1/Access | First assault squad dispatched 27958 | -1/Access | Incoming assault squad redirected 28045 | -1/Access | Identified Cld. Nova Cannon 28324 | -1/Access | Discovered new exit (range 6) 28412 | -1/Access | Incoming assault squad redirected 28426 | -1/Access | Identified exit to Surface 28588 | -1/Access | Incoming investigation squad redirected 28722 | -1/Access | Spotted B-99 Colossus 28733 | -1/Access | Spotted B-99 Colossus 28763 | -1/Access | Destroyed B-99 Colossus 28789 | -1/Access | Destroyed B-99 Colossus 28815 | -1/Access | Lost 8 parts (1p5u2w) 28852 | -1/Access | High security lockdown imminent 28889 | -1/Access | Destroyed 7 combat bots 28896 | -1/Access | Lost 3 parts (1n1u1w) 28932 | -1/Access | High security lockdown engaged 29114 | -1/Access | Destroyed Striker 29122 | -1/Access | Spotted Executioner 29150 | *** | Escaped! Last Messages --------------- 29141_ C-30 ARC bursts open, deploying its payload. 29141_ G-73 Enforcer unfolds itself. 29141_ B-74 Champion unfolds itself. 29141_ E-15 Imp unfolds itself. 29141_ U-05 Engineer lays Concrete. 29143_ Penetrated by Slug. 29143_ U-05 Engineer builds a Wall. 29144_ U-05 Engineer lays Concrete. 29145_ E-15 Imp destroyed. 29145_ U-05 Engineer lays Concrete. 29146_ Terminal disabled. 29147_ C-30 ARC bursts open, deploying its payload. 29147_ G-73 Enforcer unfolds itself. 29147_ L-61 Swordsman unfolds itself. 29147_ G-73 Enforcer unfolds itself. 29147_ L-61 Swordsman unfolds itself. 29147_ M-36 Artificer unfolds itself. 29148_ M-36 Artificer fits Backup Power VII on M-36 Artificer. 29148_ U-05 Engineer lays Concrete. 29150_ Penetrated by Slug. Map ----- +----------------------------------------------------+ | ???????????# ""#?? #????????????????? | | ##########?# # #????????????????? | | ?# " ?????????????????? | | ##"###+###""""" "#"""""" =????????????? | | # %= ????????????? | | = % ????????????? | | #######"" """####+#?????????????????? | | =% ###????????" ????????????????? | | # # #########???? #???????????????? | | # " #???????? #???????????????? | | # # """ #?????????????????????????? | | # # """ #?????????????????????????? | | # + " #?????????????????????????? | | # # #?????????????????????????? | | ##### # # #?????????????????????????? | | ????### # # #?????????????????????????? | | ??????##### # #?????????????????????????? | | ??????????# ###########?????????????????????????? | | ??????????# "#????###???????????????????????????? | | ??????????# ####### ##########??##########??????? | | ??????????# """T""" "??" #####???? | | ??????????# """ " " "??" ## ####? | | ?????????## """" ######## | | ?????????#; "" # | | ??????????# "" "" % %%! #? | | ??????????# @*g l bi! l % *%[ #? | | ??????????# =%pg =bg l % m =m%! # | | ???????# ; ! === E/%gg u # # #? | | ????????### % !% [ b %! g # # # | | ???????#### [ * R [ u # # # | | ???????# ; ####### ######################?????+? | | ???????## # # #??###?????####??????????????????? | | ???????## # # #????????????????????????????????? | | ??????##%%# # #????????????????????????????????? | | ??????# # ##????????????????????????????????? | | ??????# # #?????????????????????????????????? | | ???##### %#% "#########?????????????????????????? | | #* # #?????????????????????????? | | # # #?????????????????????????? | | # """ # # " #?????????????????????????? | | # ""T" # # """ #?????????????????????????? | | # "" " # # """ #?????????????????????????? | | # + + " #?????????????????????????? | | # # =# #?????????????????????????? | | # # # #?????????????????????????? | | ##"######"# ###" #####???????????????????????? | | " " # ##??????????????????????? | | " % "##?????????????????????? | | # % % " #?????????????????????? | | " # "##% ###?????????????????????? | +----------------------------------------------------+ Best States ------------- Heat Dissipation 115 Coolant Potential 120 Energy Generation 55 Energy Capacity 700 Matter Stores 300 Matter Capacity 700 Sight Range 20 Robot Scan Range 20 Terrain Scan Range 20 Terrain Scan Density 10 Armor Coverage 2100 Resistance: KI 30 Resistance: TH 30 Weapon Shielding 66 Phase Shifting 15 Evasion (%) 55 Targeting Accuracy 12 Melee Accuracy 6 Recoil Reduction 8 Matter Filtering 30 Offensive Hacking 20 Defensive Hacking 20 Item Schematics ----------------- Huge Storage Unit | -10/Mines | Hacked Flak Gun | -8/Materials | Scanalyzed Adv. Treads | -8/Materials | Scanalyzed Hvy. Treads | -7/Factory | Scanalyzed Med. Reactive Plating | -7/Factory | Scanalyzed Combat Drone Bay | -7/Data Miner | Free Lgt. Regenerative Plating | -7/Data Miner | Free Triangulator | -7/Data Miner | Free Exp. Sensor Array | -7/Data Miner | Free Exp. Terrain Scanner | -7/Data Miner | Free Exp. Terrain Scan Processor | -7/Data Miner | Free Exp. ECM Suite | -7/Data Miner | Free Mni. Smartbomb Launcher | -7/Data Miner | Free Centrium Medium Armor Plating | -3/Research | Scanalyzed Adv. Heavy Treads | -3/Quarantine | Hacked Robot Schematics ------------------ S-27 Virus | -7/Data Miner | Free G-50 Soldier | -7/Data Miner | Free G-67 Veteran | -7/Data Miner | Free H-66 Slayer | -7/Data Miner | Free I-36 Angel | -7/Data Miner | Free I-47 Archangel | -7/Data Miner | Free Fabricated ------------ Hvy. Treads | x2 | -7/Factory Arm. Heavy Treads | x2 | -5/Factory | Preloaded Exp. Sensor Array | x1 | -5/Factory Mni. Smartbomb Launcher | x1 | -4/Factory Huge Storage Unit | x1 | -2/Testing Alien Tech Used ----------------- Core Expander Matter Drive Achievements -------------- None Challenges ------------ None Game ------ Seed IntegrityAssemblyStabilizer Manual? 0 Play Time 03:03:30 Cumulative 898.4 hours Start 2021.08.07 @ 14:26:30 End 2021.08.08 @ 13:08:36 Sessions 5 Manual Loads 0 Difficulty Rogue Special Mode None Game No. 628 Rogue 624 Adventurer 4 Explorer 0 Win Type 0 Total 97 Types 75/9/4/4/2/0/0/2/1 Lore% 95 Gallery% 97 Achievement% 96 Wizard Run 0 Options --------- ASCII 0 Keyboard 1 Movement Vi Keybinds 0 Fullscreen 0 Font 16/Terminus Map View 76x50 Tactical HUD 1 Map Filters NONE Filters NONE Steam 1 RUN: d2828e75-7621-4b82-9d28-5673af3ec879